bitfinex-derivatives/quotes_ETHF0:USTF0_20251203
["timestamp","ask_amount","ask_price","bid_price","bid_amount"]
[1764738113367,4.76501188,3056.0,3055.5,3.6898]
[1764738113368,5.24291188,3056.0,3055.5,3.6898]
[1764738113575,1.5492,3055.6,3055.5,4.6896]
[1764738114274,4.49401188,3056.0,3055.9,0.7434]
[1764738114477,4.76501188,3056.0,3055.9,1.4818]
[1764738115077,4.01611188,3056.0,3055.9,1.4818]
[1764738115383,0.00801188,3056.0,3055.9,1.4818]
[1764738118483,0.80831188,3056.0,3055.9,1.4818]
[1764738118786,0.00801188,3056.0,3055.9,1.4818]
[1764738119680,0.00801188,3056.0,3055.9,4.6896]
[1764738120287,1.55721188,3056.0,3055.9,4.6896]
[1764738120487,1.55721188,3056.0,3055.9,1.4818]
[1764738120883,0.80831188,3056.0,3055.9,1.4818]
[1764738121384,1.55721188,3056.0,3055.9,1.4818]
[1764738121585,0.80831188,3056.0,3055.9,1.4818]
[1764738121982,0.00801188,3056.0,3055.9,1.4818]
[1764738124090,0.81011188,3056.0,3055.9,1.4818]
[1764738124686,1.61131188,3056.0,3055.9,1.4818]
[1764738124881,1.6033,3055.6,3055.5,5.2562]
[1764738125086,2.06361188,3056.0,3055.9,0.7693]
[1764738125281,1.16960294,3056.0,3055.5,5.2562]
[1764738125486,2.06361188,3056.0,3055.9,1.5664]
[1764738125686,1.51939147,3056.0,3055.9,1.5664]
[1764738126089,0.00801188,3056.0,3055.9,1.5664]
[1764738126785,0.81011188,3056.0,3055.9,1.5664]
[1764738127488,1.6033,3055.6,3055.5,1.5664]
[1764738127881,0.8021,3055.6,3055.5,2.0353]
[1764738128082,5.27141188,3056.0,3055.9,0.7693]
[1764738128286,1.6033,3055.4,3055.3,1.57474692]
[1764738128688,1.6033,3055.4,3055.3,0.00834692]
[1764738129191,1.6033,3055.4,3055.3,0.77764692]
[1764738130686,1.6033,3055.4,3055.3,0.00834692]
[1764738131291,3.46524445,3055.4,3055.1,3.2078]
[1764738131486,1.6033,3055.2,3055.1,3.2078]
[1764738131687,2.3136219,3055.2,3055.1,3.9771]
[1764738131887,3.2078,3055.6,3055.5,0.7693]
[1764738131888,4.8111,3055.6,3055.5,0.7693]
[1764738132096,5.52133202,3055.6,3055.5,0.7693]
[1764738132397,5.52133202,3055.6,3055.5,0.77228434]
[1764738133199,4.72013202,3055.6,3055.5,2.03828434]
[1764738133694,5.52133202,3055.6,3055.5,0.77228434]
[1764738134596,5.52133202,3055.6,3055.5,0.00298434]
[1764738135098,5.52133202,3055.6,3055.5,0.77228434]
[1764738135294,5.52133202,3055.6,3055.5,1.56938434]
[1764738135504,5.52133202,3055.6,3055.5,0.77228434]
[1764738136100,5.52133202,3055.6,3055.5,0.00298434]
[1764738136396,0.71023202,3055.6,3055.5,5.24608434]
[1764738136599,2.31328241,3055.6,3055.5,3.98008434]
[1764738136898,2.31328241,3055.6,3055.5,3.21078434]
[1764738137395,0.70998241,3055.6,3055.5,5.24608434]
[1764738137707,3.2078,3056.4,3055.5,5.24608434]
[1764738137708,1.61131188,3056.0,3055.9,1.5664]
[1764738137996,2.32126888,3056.0,3055.9,1.5664]
[1764738138192,2.32126888,3056.0,3055.9,0.7693]
[1764738138394,2.77356888,3056.0,3055.5,3.67968434]
[1764738138593,0.709957,3055.9,3055.5,5.24608434]
[1764738138793,2.313257,3055.9,3055.8,1.5664]
[1764738139092,1.512057,3055.9,3055.8,1.5664]
[1764738139489,0.81011188,3056.0,3055.9,1.5664]
[1764738139702,0.00801188,3056.0,3055.9,1.5664]
[1764738140093,0.00801188,3056.0,3055.9,4.7742]
[1764738140290,4.8111,3056.7,3056.6,1.5664]
[1764738140494,5.5209686,3056.7,3056.6,1.5664]
[1764738140694,5.5209686,3056.7,3056.0,0.4689]
[1764738140905,0.4341,3056.5,3056.0,0.4689]
[1764738141296,1.60665944,3056.5,3056.4,1.5664]
[1764738141499,2.31640559,3056.5,3056.4,0.7693]
[1764738141804,1.51520559,3056.5,3056.4,1.5664]
[1764738142004,0.71310559,3056.5,3056.4,1.5664]
[1764738142392,1.60820268,3056.6,3056.5,2.0353]
[1764738142598,1.60820268,3056.6,3056.5,0.7693]
[1764738142800,2.0556,3056.5,3056.4,3.9771]
[1764738142999,1.6033,3056.5,3056.4,1.5664]
[1764738143200,0.80700268,3056.6,3056.5,2.0353]
[1764738143503,0.81062143,3056.6,3056.5,2.0353]
[1764738143899,0.00852143,3056.6,3056.5,2.0353]
[1764738144504,3.2078,3057.1,3057.0,2.0353]
[1764738144901,4.0099,3057.1,3057.0,2.0353]
[1764738145102,5.52013611,3057.1,3057.0,1.5664]
[1764738145402,4.81417843,3057.1,3057.0,1.5664]
[1764738145601,4.81417843,3057.1,3057.0,0.7693]
[1764738146001,0.8021,3056.8,3056.7,1.57130268]
[1764738147102,3.21087843,3057.1,3057.0,2.0353]
[1764738147801,4.01297843,3057.1,3057.0,2.0353]
[1764738148202,0.00307843,3057.1,3057.0,2.0353]
[1764738148506,0.00490268,3057.4,3057.3,1.5664]
[1764738149407,0.00874224,3057.4,3057.3,1.5664]
[1764738151614,3.2078,3057.9,3057.3,1.5664]
[1764738151909,3.2078,3058.3,3058.2,1.5664]
[1764738152718,3.21070304,3058.3,3058.2,1.56978434]
[1764738153013,4.01280304,3058.3,3058.2,1.56978434]
[1764738153317,4.81400304,3058.3,3058.2,1.56978434]
[1764738153507,4.81400304,3058.3,3058.2,0.00338434]
[1764738154116,3.99000304,3058.3,3058.2,1.56378434]
[1764738154411,4.74270304,3058.3,3058.2,1.56378434]
[1764738154717,0.00290304,3058.3,3058.2,1.56378434]
[1764738155109,0.00490268,3058.6,3058.5,2.0135]
[1764738156207,0.00828462,3058.6,3058.5,2.0135]
[1764738157018,0.00828462,3058.6,3058.5,5.2213]
[1764738159807,0.74718462,3058.6,3058.5,5.2213]
[1764738160218,0.00828462,3058.6,3058.5,5.2213]
[1764738163224,0.74718462,3058.6,3058.5,5.2213]
[1764738163616,0.7389,3058.3,3058.2,1.60548702]
[1764738163816,0.7389,3058.3,3058.2,0.00828702]
[1764738163817,1.5281,3058.3,3058.2,0.00828702]
[1764738164115,1.5281,3058.3,3058.2,0.80418702]
[1764738164315,1.5281,3058.3,3058.2,1.60548702]
[1764738164623,0.74718462,3058.6,3058.5,2.0665]
[1764738165221,1.53638462,3058.6,3058.5,2.0665]
[1764738165521,1.53638462,3058.6,3058.5,0.7959]
[1764738165815,1.5281,3058.3,3058.2,0.80418702]
[1764738166516,0.74718462,3058.6,3058.5,1.5972]
[1764738166721,1.53638462,3058.6,3058.5,0.7959]
[1764738167415,1.53638462,3058.6,3058.5,1.5972]
[1764738168115,0.74718462,3058.6,3058.5,1.5972]
[1764738168321,1.53638462,3058.6,3058.5,1.5972]
[1764738168513,1.53638462,3058.6,3058.5,0.7959]
[1764738168715,1.5281,3058.3,3058.2,1.60548702]
[1764738168918,1.5281,3058.3,3058.2,0.80418702]
[1764738169318,1.5281,3058.3,3058.2,0.00828702]
[1764738171221,42.3281,3058.3,3058.2,0.00828702]
[1764738171614,41.5389,3058.3,3058.2,1.60548702]
[1764738171820,41.5389,3058.3,3058.2,0.00828702]
[1764738172315,1.5281,3058.3,3058.2,0.00828702]
[1764738173218,1.5281,3057.8,3057.7,4.805]
[1764738174221,1.5281,3057.8,3057.7,0.00266919]
[1764738174419,1.5281,3057.8,3057.7,0.79856919]
[1764738174814,1.5281,3057.8,3057.7,0.00266919]
[1764738175423,2.23593169,3057.8,3057.7,0.00266919]
[1764738175720,1.9791,3057.5,3057.4,0.00490268]
[1764738176329,5.8949396,3057.5,3056.5,0.4693]
[1764738176619,0.7080396,3057.4,3056.5,0.47217286]
[1764738177418,0.7080396,3057.4,3056.6,0.00490268]
[1764738177919,0.7389,3056.7,3056.6,1.60210268]
[1764738178520,0.74380268,3057.0,3056.9,1.5972]
[1764738178923,1.53300268,3057.0,3056.9,1.5972]
[1764738179322,1.53300268,3057.0,3056.6,1.60210268]
[1764738179323,0.7389,3056.7,3056.6,1.60210268]
[1764738179528,1.5281,3056.7,3056.6,0.80080268]
[1764738179819,0.7389,3056.7,3056.6,1.60210268]
[1764738180420,0.74380268,3057.0,3056.9,1.5972]
[1764738180726,1.53300268,3057.0,3056.9,1.5972]
[1764738180927,0.7389,3056.7,3056.6,1.60210268]
[1764738181331,1.5281,3056.7,3056.6,0.00490268]
[1764738181828,5.44354671,3056.7,3056.6,0.00490268]
[1764738182122,1.5281,3056.6,3056.5,0.00287286]
[1764738182327,2.23574671,3056.6,3056.5,0.00287286]
[1764738183424,2.23574671,3056.6,3056.5,0.76257286]
[1764738183425,1.5281,3056.6,3056.5,0.76257286]
[1764738183825,1.5281,3056.6,3056.5,0.00287286]
[1764738185428,1.5281,3056.6,3055.5,0.6329]
[1764738185429,0.7579,3055.6,3055.5,4.4368]
[1764738185734,1.5512,3055.6,3055.5,3.9675]
[1764738186026,1.5512,3055.6,3055.5,4.7777]
[1764738186425,1.55395759,3055.6,3055.5,3.9703137]
[1764738186726,1.55395759,3055.6,3055.5,3.2106137]
[1764738187130,1.55395759,3055.6,3055.5,3.9703137]
[1764738187625,1.55395759,3055.6,3055.5,4.7805137]
[1764738187927,1.55395759,3055.6,3055.5,3.9703137]
[1764738188131,0.76065759,3055.6,3055.5,4.7805137]
[1764738188430,0.00275759,3055.6,3055.5,5.2538137]
[1764738189827,0.76065759,3055.6,3055.5,4.7805137]
[1764738190034,0.00275759,3055.6,3055.5,5.2538137]
[1764738194834,0.76065759,3055.6,3055.5,5.2538137]
[1764738195229,0.00275759,3055.6,3055.5,5.2538137]
[1764738195631,0.76065759,3055.6,3055.5,3.6839137]
[1764738195838,0.76065759,3055.6,3055.5,5.2538137]
[1764738196138,0.00275759,3055.6,3055.5,5.2538137]
[1764738196824,1.55395759,3055.6,3055.5,3.9703137]
[1764738197023,1.55395759,3055.6,3055.5,4.7805137]
[1764738197231,0.76065759,3055.6,3055.5,4.7805137]
[1764738197431,0.76065759,3055.6,3055.5,5.2538137]
[1764738197632,1.55395759,3055.6,3055.5,3.9703137]
[1764738197829,1.55395759,3055.6,3055.5,3.2106137]
[1764738198033,1.55395759,3055.6,3055.2,0.00328522]
[1764738198034,1.5512,3055.3,3055.2,0.00328522]
[1764738199038,1.5512,3055.3,3055.2,0.00631471]
[1764738199738,4.76175759,3055.6,3055.5,1.5699]
[1764738199935,1.5512,3055.3,3055.2,1.57621471]
[1764738200329,3.21055759,3055.6,3055.5,2.0432]
[1764738200633,0.00275759,3055.6,3055.5,2.0432]
[1764738201234,0.7579,3056.5,3056.4,0.7597]
[1764738201535,40.8,3056.9,3056.4,1.5699]
[1764738201836,0.7579,3056.5,3056.4,1.5699]
[1764738202238,0.76130279,3056.5,3056.4,1.5699]
[1764738203741,0.00340279,3056.5,3056.4,1.5699]
[1764738205542,1.94600279,3056.5,3056.0,3.6811]
[1764738205842,0.76130279,3056.5,3056.4,1.5699]
[1764738206043,0.76130279,3056.5,3056.4,4.7777]
[1764738206044,0.00340279,3056.5,3056.4,4.7777]
[1764738206346,0.00490268,3057.0,3056.9,1.5699]
[1764738206639,0.00490268,3057.0,3056.9,4.7777]
[1764738207041,3.2078,3057.9,3057.8,0.7597]
[1764738207247,5.47183051,3057.9,3057.8,0.00315707]
[1764738212752,5.47059248,3057.9,3057.8,0.00315707]
[1764738214049,5.47059248,3057.9,3057.8,0.76015707]
[1764738214250,4.76214967,3057.9,3057.8,1.55515707]
[1764738214953,4.76214967,3057.9,3057.8,0.76015707]
[1764738216054,4.76214967,3057.9,3057.8,0.00315707]
[1764738218169,4.76214967,3057.9,3057.8,1.55515707]
[1764738218657,4.76214967,3057.9,3057.8,0.76015707]
[1764738219057,4.76214967,3057.9,3057.8,0.00315707]
[1764738219251,4.76214967,3057.9,3057.8,1.55515707]
[1764738219449,3.21094967,3057.9,3057.8,1.55515707]
[1764738219754,4.00634967,3057.9,3057.8,1.55515707]
[1764738219954,4.80204967,3057.9,3057.8,1.55515707]
[1764738220763,4.80204967,3057.9,3057.8,0.76015707]
[1764738221060,4.80204967,3057.9,3057.8,1.55515707]
[1764738221762,4.80204967,3057.9,3057.8,0.73785707]
[1764738222059,4.00634967,3057.9,3057.8,1.48685707]
[1764738222261,3.21094967,3057.9,3057.8,1.48685707]
[1764738222459,0.00314967,3057.9,3057.8,1.48685707]
[1764738223654,1.50844967,3057.9,3057.8,1.48685707]
[1764738225560,0.73614967,3057.9,3057.8,1.48685707]
[1764738225759,1.50844967,3057.9,3057.8,1.48685707]
[1764738226263,0.73614967,3057.9,3057.8,1.48685707]
[1764738227065,0.00314967,3057.9,3057.8,1.48685707]
[1764738227359,1.50844967,3057.9,3057.8,1.48685707]
[1764738228357,1.50844967,3057.9,3057.8,0.00315707]
[1764738228663,4.71624967,3057.9,3057.8,0.00315707]
[1764738228960,4.71624967,3057.9,3057.8,1.48685707]
[1764738229150,1.50844967,3057.9,3057.8,1.48685707]
[1764738229354,0.73614967,3057.9,3057.8,1.48685707]
[1764738229561,0.00314967,3057.9,3057.8,1.48685707]
[1764738230263,0.00490268,3058.2,3058.1,1.4837]
[1764738231256,0.00848661,3058.2,3058.1,1.4837]
[1764738240368,1.15872521,3058.2,3058.1,1.4837]
[1764738240661,2.66402521,3058.2,3058.1,1.4837]
[1764738240970,1.15872521,3058.2,3058.1,1.4837]
[1764738241666,1.89172521,3058.2,3058.1,1.4837]
[1764738241866,2.66402521,3058.2,3058.1,1.4837]
[1764738242064,0.00848661,3058.2,3058.1,1.4837]
[1764738242267,1.15872521,3058.2,3058.1,1.4837]
[1764738242870,2.66402521,3058.2,3058.1,1.4837]
[1764738243172,1.15872521,3058.2,3058.1,1.4837]
[1764738245670,0.00848661,3058.2,3058.1,1.4837]
[1764738245860,1.94532521,3058.2,3058.1,1.4837]
[1764738246059,1.15872521,3058.2,3058.1,1.4837]
[1764738246265,0.00848661,3058.2,3058.1,1.4837]
[1764738248772,0.79508661,3058.2,3058.1,1.4837]
[1764738248976,1.94532521,3058.2,3058.1,1.4837]
[1764738250074,0.00848661,3058.2,3058.1,1.4837]
[1764738250278,0.79508661,3058.2,3058.1,1.4837]
[1764738250476,1.56118661,3058.2,3058.1,1.4837]
[1764738250775,1.56118661,3058.2,3058.1,1.4973]
[1764738250975,0.00848661,3058.2,3058.1,1.4973]
[1764738252273,4.7605,3058.8,3058.7,0.8121]
[1764738252472,4.7605,3058.8,3058.0,0.4712]
[1764738252473,6.62154605,3058.8,3058.0,0.4712]
[1764738252766,1.1502386,3058.5,3058.0,0.4712]
[1764738252969,2.7029386,3058.5,3058.4,1.5747]
[1764738253175,3.4179183,3058.5,3058.4,1.5747]
[1764738253573,0.7149797,3058.5,3058.4,1.5747]
[1764738253777,1.5015797,3058.5,3058.4,1.5747]
[1764738254280,0.7906811,3058.5,3058.4,1.5747]
[1764738254479,0.71507227,3058.5,3058.4,1.5747]
[1764738254675,0.0040811,3058.5,3058.4,1.5747]
[1764738257980,1.5567811,3058.5,3058.4,1.5747]
[1764738258281,3.0631197,3058.5,3058.4,1.5747]
[1764738258475,2.7070197,3058.5,3058.4,0.8121]
[1764738258675,2.7070197,3058.5,3058.4,1.5747]
[1764738258878,1.1543197,3058.5,3058.4,1.5747]
[1764738259474,0.71602636,3058.5,3058.4,1.5747]
[1764738260878,0.71602636,3058.5,3058.4,2.7249386]
[1764738261076,0.00490268,3058.8,3058.7,1.5747]
[1764738261584,0.71677349,3058.8,3058.7,1.5747]
[1764738262081,0.71972169,3058.8,3058.7,1.5747]
[1764738262279,0.00785088,3058.8,3058.7,1.5747]
[1764738264582,0.79445088,3058.8,3058.7,1.5747]
[1764738265183,0.00785088,3058.8,3058.7,1.5747]
[1764738267990,1.56055088,3058.8,3058.7,1.5747]
[1764738268290,0.79445088,3058.8,3058.7,1.5747]
[1764738268989,0.00785088,3058.8,3058.7,1.5747]
[1764738269492,0.00785088,3058.8,3058.7,4.7825]
[1764738270392,3.1738386,3059.5,3059.4,0.8121]
[1764738270592,3.88488173,3059.5,3059.4,0.8121]
[1764738271499,3.88796211,3059.5,3059.4,0.8121]
[1764738272093,1.5527,3059.2,3059.1,4.78740268]
[1764738272284,2.26374313,3059.2,3059.1,4.78740268]
[1764738272487,3.41398173,3059.2,3059.1,0.00490268]
[1764738274400,3.41398173,3059.2,3059.1,0.81700268]
[1764738274896,3.41398173,3059.2,3059.1,0.00490268]
[1764738276398,3.41398173,3059.2,3059.1,1.59580268]
[1764738277700,1.49764313,3059.2,3059.1,4.80360268]
[1764738279394,2.30264313,3059.2,3059.1,4.80360268]
[1764738281197,1.49764313,3059.2,3059.1,4.80360268]
[1764738282097,2.30264313,3059.2,3059.1,4.80360268]
[1764738283590,0.71104313,3059.2,3059.1,4.80360268]
[1764738283789,1.22328038,3059.5,3059.4,1.5547]
[1764738284393,0.00490268,3059.8,3059.7,1.5547]
[1764738284696,5.2375,3060.5,3060.4,1.5547]
[1764738284997,3.32468734,3060.9,3060.8,1.5547]
[1764738285187,4.7781,3061.3,3061.2,1.5547]
[1764738285493,4.7781,3061.3,3061.2,1.55815348]
[1764738285494,1.57302943,3061.3,3061.2,1.55815348]
[1764738285686,0.00272943,3061.3,3061.2,1.55815348]
[1764738286097,1.57302943,3061.3,3061.2,1.55815348]
[1764738286397,1.57302943,3061.3,3061.2,0.75365348]
[1764738286601,1.57302943,3061.3,3061.2,0.00345348]
[1764738286903,1.57302943,3061.3,3061.2,1.55815348]
[1764738287297,0.76802943,3061.3,3061.2,1.55815348]
[1764738287599,1.57302943,3061.3,3061.2,0.00345348]
[1764738287997,5.95639137,3061.3,3061.2,0.00345348]
[1764738288400,1.5703,3060.6,3060.5,3.2078]
[1764738288701,1.5703,3060.6,3060.5,4.7625]
[1764738289001,1.5703,3061.0,3060.9,1.5547]
[1764738289309,1.5703,3061.0,3060.9,0.75443487]
[1764738289603,1.5703,3061.0,3060.9,1.55893487]
[1764738290497,1.5703,3061.0,3060.9,0.00423487]
[1764738290498,2.0447,3061.0,3060.9,0.00423487]
[1764738291399,1.17556194,3060.9,3060.1,4.7625]
[1764738291705,2.0447,3061.0,3060.9,0.7502]
[1764738292202,0.7653,3060.6,3060.5,2.0398]
[1764738292503,2.0447,3061.0,3060.9,0.7502]
[1764738293099,2.0447,3061.0,3060.9,1.5547]
[1764738294008,2.0447,3061.0,3060.9,0.7502]
[1764738294204,0.7653,3060.6,3060.5,5.25062587]
[1764738295608,1.5703,3060.6,3060.5,5.25062587]
[1764738296010,0.7653,3060.6,3060.5,5.25062587]
[1764738296308,1.5703,3060.6,3060.5,5.25062587]
[1764738296508,0.7653,3060.6,3060.5,5.25062587]
[1764738297210,2.0447,3061.0,3060.9,0.7502]
[1764738297412,2.0447,3061.0,3060.9,1.5547]
[1764738297910,1.5703,3061.0,3060.9,1.5547]
[1764738298307,2.0447,3061.0,3060.5,3.69592587]
[1764738298606,1.5703,3060.6,3060.5,4.76552587]
[1764738298812,2.0447,3061.0,3060.9,0.7502]
[1764738299111,1.5703,3061.0,3060.9,1.5547]
[1764738299508,1.5703,3061.0,3060.9,0.7502]
[1764738299710,2.0447,3061.0,3060.9,0.7502]
[1764738300106,0.7653,3061.0,3060.9,1.5547]
[1764738300897,1.5703,3061.0,3060.9,1.5547]
[1764738301102,1.5703,3060.6,3060.5,3.96102587]
[1764738301510,1.5703,3060.6,3060.5,4.76552587]
[1764738301710,0.7653,3060.6,3060.5,5.25062587]
[1764738302099,0.4744,3061.0,3060.5,5.25062587]
[1764738302100,2.0447,3061.0,3060.9,1.5547]
[1764738302300,0.7653,3061.0,3060.9,1.5547]
[1764738302703,4.78082943,3061.3,3061.2,1.5547]
[1764738303413,0.4459,3061.0,3060.5,5.27872587]
[1764738303713,4.76522943,3061.3,3060.5,3.69122587]
[1764738303909,1.5547,3060.6,3060.5,5.27872587]
[1764738304216,1.5547,3060.6,3060.5,3.21082587]
[1764738305210,1.5547,3060.6,3060.5,4.79832587]
[1764738305520,0.7962,3060.6,3060.5,5.27872587]
[1764738305810,1.5547,3060.6,3060.5,5.27872587]
[1764738306914,0.7962,3060.6,3060.5,5.27872587]
[1764738307621,1.5547,3060.3,3060.2,0.81680268]
[1764738307810,1.5547,3060.3,3060.2,0.00490268]
[1764738308621,1.5547,3060.3,3060.2,0.00753605]
[1764738309014,4.7625,3060.3,3060.2,0.00753605]
[1764738309221,46.27105259,3060.3,3060.2,0.00753605]
[1764738309419,46.27105259,3060.3,3059.5,0.4851]
[1764738309620,0.70855259,3060.2,3059.5,0.4851]
[1764738309819,0.7962,3059.6,3059.5,2.0726]
[1764738310023,1.5547,3059.6,3059.5,2.0726]
[1764738310330,2.0006,3059.5,3059.4,3.2078]
[1764738310525,0.7962,3059.3,3059.2,1.59240268]
[1764738310726,1.5547,3059.3,3059.2,1.59240268]
[1764738310934,1.5547,3059.3,3059.2,1.59594841]
[1764738311430,1.5547,3059.3,3059.2,0.00844841]
[1764738312229,1.5547,3059.3,3059.2,0.82034841]
[1764738312431,1.5547,3059.3,3059.2,1.59594841]
[1764738312827,0.7962,3059.3,3059.2,1.59594841]
[1764738313233,3.21270268,3059.9,3059.2,1.59594841]
[1764738313433,0.7962,3059.3,3059.2,1.59594841]
[1764738313629,1.5547,3059.3,3059.2,0.82034841]
[1764738314225,1.5547,3059.3,3059.2,1.59594841]
[1764738315335,0.7962,3059.3,3059.2,1.59594841]
[1764738315530,1.5547,3059.3,3059.2,1.59594841]
[1764738315735,1.5547,3059.3,3059.2,0.00844841]
[1764738318533,1.5547,3059.3,3058.6,1.5875]
[1764738318534,0.7962,3058.7,3058.6,1.5875]
[1764738318738,2.0006,3059.0,3058.9,0.8119]
[1764738319438,2.00370192,3059.0,3058.9,0.00390278]
[1764738320041,2.00370192,3059.0,3058.9,0.81580278]
[1764738321141,2.00370192,3059.0,3058.9,0.00390278]
[1764738321636,1.5547,3058.7,3058.6,0.00328522]
[1764738321943,4.7625,3058.7,3058.6,0.00328522]
[1764738322329,45.5625,3058.7,3058.6,0.81518522]
[1764738322537,45.5625,3058.7,3058.6,0.00328522]
[1764738322743,45.5625,3058.7,3058.6,0.00635929]
[1764738323438,42.3547,3058.7,3058.6,0.00635929]
[1764738323839,45.5625,3058.7,3058.6,0.00635929]
[1764738324145,45.5625,3058.7,3058.6,1.59385929]
[1764738324833,4.7625,3058.7,3058.6,0.81825929]
[1764738325033,4.7625,3058.7,3058.6,1.59385929]
[1764738325034,4.004,3058.7,3058.6,1.59385929]
[1764738325541,3.2078,3058.7,3058.6,1.59385929]
[1764738326041,0.00310192,3059.0,3058.9,1.5875]
[1764738326341,0.79930192,3059.0,3058.9,1.5875]
[1764738326544,1.55780192,3059.0,3058.9,1.5875]
[1764738326739,0.79930192,3059.0,3058.9,1.5875]
[1764738326944,0.00310192,3059.0,3058.9,1.5875]
[1764738327438,3.2078,3059.5,3059.4,1.5875]
[1764738327643,4.7625,3059.5,3059.4,1.5875]
[1764738328036,4.7625,3059.5,3059.4,0.8119]
[1764738328434,1.5547,3059.1,3059.0,2.0679]
[1764738328838,3.65531125,3059.5,3059.0,2.0679]
[1764738329137,3.65531125,3059.5,3059.4,1.5875]
[1764738329138,4.00681125,3059.5,3059.4,1.5875]
[1764738329338,3.21061125,3059.5,3059.4,1.5875]
[1764738329941,1.5547,3059.6,3059.5,1.5875]
[1764738330142,4.00890268,3059.9,3059.8,0.8119]
[1764738330345,4.76740268,3059.9,3059.8,1.5875]
[1764738330546,4.76740268,3059.9,3059.8,0.8119]
[1764738330947,4.77027509,3059.9,3059.8,0.8119]
[1764738331244,4.77027509,3059.9,3059.8,1.5875]
[1764738331439,4.77027509,3059.9,3058.9,0.16342]
[1764738331440,0.4459,3059.5,3058.8,4.7953]
[1764738331640,3.2078,3059.4,3058.8,4.7953]
[1764738331837,3.2078,3059.8,3059.3,1.5875]
[1764738332041,4.7625,3059.8,3059.7,0.8119]
[1764738332242,5.4709065,3059.8,3059.7,0.8119]
[1764738332549,4.7625,3059.8,3059.7,0.8119]
[1764738332850,4.004,3059.8,3059.7,1.5875]
[1764738333446,3.2078,3059.8,3059.7,1.5875]
[1764738333844,3.2078,3059.8,3059.5,0.4804]
[1764738334042,1.6031,3059.6,3059.5,1.2659]
[1764738334348,1.6031,3059.6,3059.1,3.635]
[1764738334848,3.2078,3059.8,3059.1,3.635]
[1764738334849,1.6031,3059.2,3059.1,0.7855]
[1764738335044,3.2078,3059.8,3059.1,1.5284]
[1764738335240,0.70912137,3059.7,3059.1,1.5284]
[1764738335436,3.2078,3059.8,3058.9,3.2078]
[1764738335437,2.31222137,3059.6,3059.5,0.7855]
[1764738335640,2.31222137,3059.6,3058.9,3.2078]
[1764738335851,1.6031,3059.6,3058.9,3.2078]
[1764738336047,4.7276,3059.8,3059.7,0.807]
[1764738336254,1.5198,3059.6,3059.5,1.2831]
[1764738336744,1.5198,3059.6,3059.5,2.031]
[1764738336946,0.7334,3059.6,3059.5,2.031]
[1764738337346,1.44337488,3059.6,3059.5,2.031]
[1764738338046,3.2078,3059.8,3059.5,2.031]
[1764738338350,4.7276,3059.8,3059.7,0.807]
[1764738338548,5.43521968,3059.8,3059.7,0.807]
[1764738339049,0.00777509,3059.9,3059.8,1.5549]
[1764738339254,1.5198,3060.4,3060.3,0.807]
[1764738339750,0.7334,3060.1,3060.0,2.031]
[1764738340048,3.2078,3060.6,3060.0,2.031]
[1764738340246,3.94974617,3060.6,3060.5,0.807]
[1764738340453,5.44326858,3060.6,3060.5,0.807]
[1764738340653,3.92346858,3060.6,3060.0,2.03590268]
[1764738340850,4.73614617,3060.6,3060.5,0.807]
[1764738341357,3.21634617,3060.6,3060.5,2.031]
[1764738341745,0.00854617,3060.6,3060.5,2.031]
[1764738343451,0.74194617,3060.6,3060.5,2.031]
[1764738344152,0.00854617,3060.6,3060.5,2.031]
[1764738344752,0.74194617,3060.6,3060.5,2.031]
[1764738345155,1.52834617,3060.6,3060.1,3.2078]
[1764738345352,0.74194617,3060.6,3060.5,2.031]
[1764738345551,0.03014432,3060.6,3060.5,2.031]
[1764738346252,0.03014432,3060.6,3060.5,5.2388]
[1764738347156,1.26939167,3061.3,3061.2,1.5549]
[1764738348261,2.79205661,3061.3,3061.2,1.55749901]
[1764738348453,2.79205661,3061.3,3061.2,0.00259901]
[1764738348652,1.27225661,3061.3,3061.2,1.55749901]
[1764738351258,0.4457,3062.0,3061.2,1.55749901]
[1764738351259,3.2078,3062.6,3062.5,2.031]
[1764738351450,3.2078,3062.6,3062.0,0.4761]
[1764738351451,4.7276,3062.6,3062.0,0.4761]
[1764738351662,3.2078,3063.0,3062.9,1.5549]
[1764738351858,3.9412,3063.8,3062.9,3.2078]
[1764738352156,0.4487,3064.0,3063.3,1.5549]
[1764738352360,1.5198,3063.4,3063.3,0.00490268]
[1764738353959,1.5198,3063.4,3063.3,0.04979213]
[1764738358663,1.5198,3062.8,3062.7,3.2078]
[1764738359667,1.1821,3062.5,3062.4,1.55980268]
[1764738359868,1.9685,3062.5,3062.4,0.00490268]
[1764738360967,1.5198,3061.9,3061.8,3.2078]
[1764738361173,0.4487,3062.0,3061.8,4.0148]
[1764738361363,1.9685,3062.0,3061.9,0.807]
[1764738361569,1.1821,3062.0,3061.9,1.5549]
[1764738361767,0.4487,3062.5,3062.4,1.5549]
[1764738362067,1.52470268,3062.8,3062.7,0.807]
[1764738362664,1.9685,3062.5,3062.4,3.2078]
[1764738363069,1.63070268,3062.8,3062.7,1.5731]
[1764738363268,1.63070268,3062.8,3062.4,3.2078]
[1764738363269,2.095,3062.5,3062.4,3.2078]
[1764738363469,1.6258,3062.2,3062.1,0.00490268]
[1764738364265,1.6258,3061.6,3061.5,3.2078]
[1764738364463,1.6289853,3061.6,3061.5,3.2078]
[1764738364672,0.8538853,3061.6,3061.5,4.7809]
[1764738365172,1.6289853,3061.6,3061.5,3.2078]
[1764738365573,0.0031853,3061.6,3061.5,4.7809]
[1764738365870,2.34849794,3063.2,3061.5,4.7809]
[1764738365871,3.2078,3062.9,3062.4,1.5731]
[1764738366175,1.6258,3062.3,3062.2,3.2078]
[1764738366374,1.6258,3062.3,3061.3,4.843]
[1764738366766,0.00262755,3062.3,3062.2,1.5731]
[1764738366967,1.62842755,3062.3,3062.2,3.2078]
[1764738367569,0.4487,3063.5,3062.7,1.5731]
[1764738367876,2.095,3063.5,3063.4,0.8404]
[1764738368378,2.095,3063.5,3063.4,4.0482]
[1764738368567,0.00255121,3063.5,3063.4,4.78385737]
[1764738369973,0.00490268,3063.8,3063.4,4.78385737]
[1764738369974,0.00490268,3063.8,3063.7,1.5731]
[1764738370780,0.00490268,3063.8,3063.7,4.7809]
[1764738371075,0.00888554,3063.8,3063.7,4.7809]
[1764738373073,0.4692,3065.0,3064.1,1.5731]